bitfinex/quotes_ETHUSD_20250802
["timestamp","ask_amount","ask_price","bid_price","bid_amount"]
[1754098261269,5.94617,3508.0,3507.5,0.1424]
[1754098261468,0.9185,3507.9,3507.4,0.1424]
[1754098261632,0.9185,3507.8,3507.4,0.1424]
[1754098261830,4.5424,3508.0,3507.4,0.1424]
[1754098262044,0.9185,3507.7,3507.4,0.1424]
[1754098262469,0.4527,3507.6,3507.4,0.1424]
[1754098262664,4.5444,3507.5,3506.6,3.33808702]
[1754098262845,0.9185,3507.4,3507.0,0.1424]
[1754098263046,4.5444,3507.5,3507.0,0.1424]
[1754098263242,0.9185,3507.3,3507.0,0.1424]
[1754098263649,0.4527,3507.2,3507.0,0.1424]
[1754098264051,0.4527,3507.1,3507.0,0.1424]
[1754098265679,4.5444,3507.5,3507.0,0.1424]
[1754098266014,0.4527,3507.4,3507.0,0.1424]
[1754098266177,0.1424,3507.5,3507.1,0.4864]
[1754098266506,0.1424,3507.5,3507.4,2.85111478]
[1754098266805,0.1424,3507.5,3507.4,3.33751478]
[1754098267104,4.403,3507.9,3507.4,0.6288]
[1754098267305,4.403,3507.9,3507.7,2.85081208]
[1754098267526,4.403,3507.9,3507.7,3.33721208]
[1754098267807,4.403,3507.9,3507.8,0.1424]
[1754098268105,0.5951,3508.4,3507.8,0.1424]
[1754098268317,4.404,3508.0,3507.8,0.6288]
[1754098268493,0.5951,3508.4,3507.8,0.6288]
[1754098268691,4.403,3508.3,3507.8,0.6288]
[1754098268891,0.1424,3508.4,3507.9,0.4864]
[1754098269099,4.403,3508.3,3507.9,0.4864]
[1754098269412,4.8557,3508.3,3507.9,0.4864]
[1754098269710,0.4527,3508.2,3507.9,0.4864]
[1754098270413,0.4527,3508.1,3507.8,2.99318046]
[1754098270610,0.4527,3508.1,3507.8,0.1424]
[1754098270824,4.403,3508.3,3507.8,0.1424]
[1754098270979,0.4527,3508.0,3507.8,0.1424]
[1754098271511,4.85754,3508.3,3507.7,0.1424]
[1754098271512,0.9185,3507.9,3507.7,0.1424]
[1754098271955,4.8527,3507.8,3507.7,0.1424]
[1754098272251,5.4609,3507.8,3507.3,0.1424]
[1754098272396,5.3195,3507.7,3507.3,0.1424]
[1754098272796,0.9185,3507.6,3507.3,0.1424]
[1754098272996,0.9185,3507.6,3506.8,2.85159815]
[1754098273238,0.5951,3507.5,3507.0,0.1424]
[1754098273614,0.4527,3507.4,3507.0,0.1424]
[1754098274002,0.6082,3507.5,3507.0,0.1424]
[1754098274203,0.4527,3507.3,3507.0,0.1424]
[1754098275299,0.6082,3507.5,3507.0,0.1424]
[1754098275549,0.6082,3507.5,3505.5,0.002]
[1754098275550,5.3185,3507.2,3506.4,2.85186836]
[1754098275748,4.8517,3507.1,3506.4,2.85186836]
[1754098276244,0.4527,3507.0,3506.4,2.85186836]
[1754098276446,0.4527,3507.0,3506.5,2.85184329]
[1754098276650,0.9185,3507.9,3506.5,0.4864]
[1754098276807,0.4527,3507.9,3507.5,2.85102752]
[1754098277006,0.4527,3508.5,3507.6,0.4864]
[1754098277217,4.403,3508.4,3507.7,2.85087094]
[1754098277421,4.403,3508.3,3508.0,2.85062083]
[1754098277652,4.403,3508.3,3508.1,0.4864]
[1754098278031,0.4527,3508.2,3507.7,0.4864]
[1754098278349,0.9185,3508.1,3507.3,3.33752132]
[1754098278506,0.9185,3508.1,3507.4,2.8511142]
[1754098279607,0.4527,3508.0,3506.9,5.85150235]
[1754098279806,0.9185,3508.0,3507.1,2.85129644]
[1754098280003,0.9185,3507.9,3506.9,3.0]
[1754098280207,5.3255,3507.8,3506.9,2.8515163]
[1754098280543,0.9185,3507.7,3506.9,3.0]
[1754098280842,0.9185,3507.6,3506.9,3.0]
[1754098281029,0.4527,3507.5,3506.9,3.0]
[1754098283945,0.4527,3507.5,3506.9,2.851517]
[1754098285424,0.5951,3507.5,3507.0,0.1424]
[1754098285753,0.4589,3507.4,3507.0,0.5943]
[1754098287052,0.1424,3507.2,3506.7,0.1424]
[1754098287228,0.1424,3507.2,3506.5,0.4519]
[1754098287229,0.9574,3507.1,3506.5,0.4519]
[1754098287430,0.9574,3507.1,3506.6,0.1424]
[1754098287816,0.4589,3507.0,3506.6,0.1424]
[1754098288246,0.4985,3507.1,3506.6,0.1424]
[1754098288454,0.9574,3506.9,3506.4,2.85390559]
[1754098288751,0.6013,3506.8,3506.4,3.30580559]
[1754098288956,0.6013,3506.8,3506.5,0.4519]
[1754098291927,0.4589,3506.7,3506.4,0.002]
[1754098292149,0.1424,3506.8,3506.5,0.4519]
[1754098292326,0.1424,3506.8,3506.4,0.002]
[1754098292527,0.1424,3506.8,3506.6,0.4519]
[1754098293951,0.1424,3506.8,3506.4,0.002]
[1754098293952,0.4589,3506.7,3506.4,0.002]
[1754098294351,1.0998,3506.6,3506.4,0.002]
[1754098294760,0.9574,3506.5,3506.4,0.002]
[1754098295126,5.3594,3506.5,3506.4,0.002]
[1754098299747,5.9094,3506.5,3506.4,0.002]
[1754098300070,6.84521641,3506.5,3506.4,0.002]
[1754098305566,9.84521641,3506.5,3506.4,0.002]
[1754098307243,4.392,3506.5,3506.4,0.4539]
[1754098309315,4.391,3506.5,3506.4,0.4539]
[1754098311357,4.391,3506.5,3506.4,0.002]
[1754098311681,5.3206,3506.5,3506.4,0.002]
[1754098311879,5.85266,3506.5,3506.4,0.002]
[1754098312297,5.35806,3506.5,3506.4,0.002]
[1754098313194,5.85266,3506.5,3506.4,0.002]
[1754098313891,5.35806,3506.5,3506.4,0.002]
[1754098314379,5.85266,3506.5,3506.4,0.002]
[1754098316891,5.35806,3506.5,3506.4,0.002]
[1754098317294,5.50046,3506.5,3506.4,0.002]
[1754098319194,5.35806,3506.5,3506.4,0.002]
[1754098324967,5.90806,3506.5,3506.4,0.002]
[1754098325277,9.25450657,3506.5,3506.4,0.002]
[1754098325678,5.90806,3506.5,3506.4,0.002]
[1754098327796,5.35806,3506.5,3506.4,0.002]
[1754098329198,5.50046,3506.5,3506.4,0.002]
[1754098329807,6.05046,3506.5,3506.4,0.002]
[1754098329986,6.54506,3506.5,3506.4,0.002]
[1754098331287,12.39690657,3506.5,3506.4,0.002]
[1754098332482,14.11090657,3506.5,3506.4,0.002]
[1754098332688,12.39690657,3506.5,3506.4,0.002]
[1754098342596,12.40000657,3506.5,3506.4,0.002]
[1754098342802,19.42000657,3506.5,3506.4,0.002]
[1754098342989,27.75218131,3506.5,3506.4,0.002]
[1754098343194,8.11617192,3506.1,3506.0,0.002]
[1754098343394,19.66957192,3506.1,3506.0,0.002]
[1754098343734,20.61587192,3506.1,3506.0,0.002]
[1754098343890,5.11657873,3505.6,3505.5,0.002]
[1754098344094,13.1616366,3505.6,3505.5,0.002]
[1754098344426,14.1079366,3505.6,3505.5,0.002]
[1754098351405,14.1079366,3505.6,3505.5,0.4957]
[1754098351406,8.04505787,3505.6,3505.5,0.4957]
[1754098351603,7.391,3505.6,3505.5,0.9527]
[1754098352024,6.855,3505.7,3505.5,0.9527]
[1754098352230,4.5334,3505.6,3505.5,0.9527]
[1754098352403,7.5334,3505.6,3505.5,0.002]
[1754098352808,4.5334,3505.6,3505.5,0.002]
[1754098353105,7.5334,3505.6,3505.5,0.9527]
[1754098354426,8.97224,3505.6,3505.5,0.9527]
[1754098354719,7.5334,3505.6,3505.5,0.4957]
[1754098354928,7.5334,3505.6,3505.5,0.9527]
[1754098356304,7.5334,3505.6,3505.5,0.4957]
[1754098356505,7.5334,3505.6,3504.3,0.002]
[1754098356506,2.264,3505.1,3504.3,0.002]
[1754098356710,0.6924,3504.4,3504.3,0.4957]
[1754098356937,8.1234,3504.4,3504.3,0.4957]
[1754098359003,8.2640364,3504.4,3504.3,0.4957]
[1754098359200,8.2640364,3504.4,3504.3,0.002]
[1754098359407,12.89029557,3504.4,3504.3,0.002]
[1754098360337,21.22247031,3504.4,3504.3,0.002]
[1754098360500,14.60429557,3504.4,3504.3,0.002]
[1754098361731,9.67559557,3504.4,3504.3,0.002]
[1754098361936,14.10459557,3504.4,3504.3,0.002]
[1754098363135,14.10359557,3504.4,3504.3,0.002]
[1754098363325,14.60129557,3504.4,3504.3,0.002]
[1754098364244,9.67559557,3504.4,3504.3,0.002]
[1754098364454,14.10259557,3504.4,3504.3,0.002]
[1754098364606,14.60029557,3504.4,3504.3,0.002]
[1754098367555,15.09399557,3504.4,3504.3,0.002]
[1754098369120,0.55,3503.6,3503.4,0.4937]
[1754098369320,10.82528856,3503.5,3503.4,0.4937]
[1754098369538,12.35021742,3503.5,3503.4,0.4937]
[1754098369741,6.40439702,3503.4,3503.2,0.4937]
[1754098370051,6.40439702,3503.4,3502.9,0.457]
[1754098370052,4.974,3503.3,3502.9,0.457]
[1754098370260,0.55,3503.2,3503.0,0.457]
[1754098370557,4.973,3503.1,3503.0,0.457]
[1754098370870,0.55,3503.0,3502.8,0.457]
[1754098371050,0.1424,3502.5,3502.0,0.1424]
[1754098371220,7.02,3503.0,3501.0,6.61817474]
[1754098371221,4.422,3502.4,3501.0,6.61817474]
[1754098371421,7.02,3503.1,3501.7,0.1424]
[1754098371622,0.1424,3502.5,3502.0,0.1424]
[1754098371822,4.421,3502.4,3502.1,0.9327]
[1754098372022,4.5634,3502.3,3501.8,2.99806748]
[1754098372327,4.422,3502.2,3501.9,0.58538759]
[1754098372760,4.422,3502.2,3502.0,0.9327]
[1754098372938,4.422,3502.2,3502.1,0.4988]
[1754098373255,4.422,3502.2,3502.1,0.9327]
[1754098373464,0.21111116,3502.2,3502.1,3.78809904]
[1754098373672,4.427,3502.2,3502.1,3.68234894]
[1754098373876,4.427,3502.2,3502.1,4.18114894]
[1754098374023,1.714,3503.8,3502.1,4.18114894]
[1754098374024,3.0,3503.8,3502.3,2.85522696]
[1754098374221,0.1424,3503.1,3502.6,0.1424]
[1754098374462,4.427,3503.0,3502.7,0.9327]
[1754098374665,0.1424,3502.9,3502.8,0.9327]
[1754098374866,4.427,3503.0,3502.8,0.9327]
[1754098374867,4.5694,3503.0,3502.8,0.9327]
[1754098375037,4.5694,3503.0,3502.8,0.4339]
[1754098375231,4.5694,3503.0,3502.9,0.9327]
[1754098377638,4.5694,3503.0,3502.9,0.4988]
[1754098378444,4.5694,3503.0,3502.9,0.9327]
[1754098380766,4.5694,3503.0,3502.9,0.4988]
[1754098381903,4.56910349,3502.5,3502.4,0.1424]
[1754098382027,1.714,3502.5,3499.9,0.4988]
[1754098382232,2.264,3502.0,3500.1,6.61817474]
[1754098382458,3.0,3501.8,3500.8,2.85642053]
[1754098382633,0.20946437,3502.0,3500.7,2.85657154]
[1754098382836,4.501,3501.9,3501.0,2.85629436]
[1754098383151,4.501,3501.9,3500.8,0.94747463]
[1754098383152,4.501,3501.9,3501.1,0.9327]
[1754098383464,4.501,3501.9,3501.2,0.4988]
[1754098384340,4.499,3501.8,3501.2,0.4988]
[1754098384750,4.497,3501.7,3501.3,0.4339]
[1754098384953,4.497,3501.7,3501.4,0.9327]
[1754098385170,3.21373128,3502.2,3501.5,0.4988]
[1754098385386,4.497,3502.1,3501.5,0.4988]
[1754098386086,0.55,3502.0,3500.6,2.85657886]
[1754098386386,0.4293,3501.9,3501.0,0.4988]
[1754098386947,3.55,3502.0,3501.0,0.4988]
[1754098388293,0.4293,3501.9,3501.0,0.4988]
[1754098388498,1.78457191,3501.9,3501.0,0.4988]
[1754098389158,4.64017225,3501.9,3501.0,0.4988]
[1754098389494,4.496,3501.8,3501.1,0.4339]
[1754098389654,4.496,3501.8,3501.2,0.4988]
[1754098392025,0.1424,3501.7,3501.2,0.642]
[1754098392324,0.4293,3502.1,3501.3,0.9327]
[1754098392488,4.491,3502.0,3501.4,0.4988]
[1754098398727,1.21814017,3502.3,3501.7,3.0]
[1754098398900,1.21814017,3502.3,3502.2,2.85534806]
[1754098399108,1.21814017,3502.3,3502.2,3.78804806]
[1754098399616,1.21814017,3502.3,3502.2,5.11421529]
[1754098401195,1.21814017,3502.3,3502.2,1.82496723]
[1754098401540,1.21814017,3502.3,3501.2,3.34528534]
[1754098401541,2.13744017,3502.3,3501.2,3.34528534]
[1754098401705,0.8855,3502.2,3501.3,0.4892]
[1754098402022,0.4277,3502.2,3501.6,2.85577359]
[1754098402391,0.1424,3502.0,3501.7,0.4892]
[1754098402621,0.1424,3502.0,3501.8,0.4892]
[1754098403003,0.1424,3502.0,3501.9,0.4892]
[1754098404114,0.1424,3502.0,3501.7,0.4892]
[1754098404314,1.21814017,3502.3,3501.7,0.4892]
[1754098404315,1.21814017,3502.3,3501.9,2.85559267]
[1754098404624,1.36054017,3502.3,3502.0,0.4892]
[1754098404926,1.36054017,3502.3,3501.8,0.1424]
[1754098404927,1.21814017,3502.3,3501.8,3.48725136]
[1754098405092,1.21814017,3502.3,3501.9,3.34476637]
[1754098405422,1.21814017,3502.3,3502.0,0.6316]
[1754098405627,1.21814017,3502.3,3502.0,0.1424]
[1754098405816,1.21814017,3502.3,3502.1,0.4892]
[1754098406615,1.21814017,3502.3,3502.2,3.34454806]
[1754098406926,1.21814017,3502.3,3502.2,3.77744806]
[1754098407134,1.21814017,3502.3,3502.2,3.91984806]
[1754098407338,4.477,3502.9,3502.7,2.85493358]
[1754098407633,0.1424,3503.1,3502.8,3.34405896]
[1754098408208,4.6184,3503.1,3502.8,2.85485896]
[1754098408414,4.6184,3503.1,3502.9,0.4892]
[1754098409003,0.36143663,3503.1,3502.8,2.85485896]
[1754098409239,0.21903663,3503.1,3503.0,0.4892]
[1754098409540,4.6174,3503.2,3503.0,0.4892]
[1754098410038,4.474,3503.4,3503.1,3.34381448]
[1754098410218,0.1424,3503.5,3503.2,3.34372387]
[1754098410419,0.35266573,3503.5,3503.3,2.85441731]
[1754098410640,4.473,3503.6,3503.3,3.34361731]
[1754098410937,4.473,3503.6,3503.4,0.4892]
[1754098411145,4.473,3503.6,3503.4,3.34354155]
[1754098411345,4.471,3503.6,3503.5,2.85428794]
[1754098412236,4.471,3503.6,3503.4,2.85431673]
[1754098412448,4.471,3503.6,3503.4,0.4892]
[1754098412651,4.471,3503.6,3503.4,3.34354801]
[1754098413157,4.471,3503.6,3503.4,0.4892]
[1754098413455,0.5701,3503.8,3503.5,0.4892]
[1754098413608,4.47,3503.7,3503.5,0.4892]
[1754098413809,0.4277,3503.7,3503.5,0.4892]
[1754098414012,4.6104,3503.8,3503.3,2.85443133]
[1754098414308,4.468,3503.8,3503.7,2.85412563]
[1754098414510,0.1424,3504.1,3503.7,3.34332563]
[1754098414736,0.21959125,3504.1,3504.0,2.85388127]
[1754098414920,0.5701,3504.6,3504.1,2.85377534]
[1754098414921,4.467,3504.3,3504.1,2.85377534]
[1754098415124,4.467,3504.3,3504.1,0.4892]
[1754098415459,4.468,3504.3,3504.1,3.34299797]
[1754098415661,4.468,3504.3,3504.2,0.4892]
[1754098416149,0.001,3504.3,3504.2,0.4892]
[1754098416345,0.001,3504.3,3504.2,0.1424]
[1754098416556,0.001,3504.3,3504.1,0.1424]
[1754098416843,0.001,3504.3,3504.1,3.48538352]
[1754098417323,0.001,3504.3,3504.2,0.4892]
[1754098417518,0.001,3504.3,3504.2,3.34291839]
[1754098419111,0.001,3504.3,3504.2,3.48531839]
[1754098421440,0.001,3504.3,3504.2,3.91821839]
[1754098421836,0.001,3504.3,3504.2,6.91821839]
[1754098422045,0.001,3504.3,3504.2,8.40472139]
[1754098425366,0.001,3505.1,3505.0,2.85306704]
[1754098425537,0.001,3505.1,3505.0,2.88159771]
[1754098425737,0.001,3505.1,3505.0,3.02399771]
[1754098426067,0.001,3505.1,3505.0,3.51319771]
[1754098426233,0.001,3505.1,3505.0,4.6099936]
[1754098426629,0.001,3505.1,3505.0,7.6099936]
[1754098426844,0.001,3505.1,3505.0,8.0428936]
[1754098428976,0.001,3505.5,3505.0,8.0428936]
[1754098428977,0.001,3505.5,3505.4,2.85274148]
[1754098429141,0.001,3505.5,3505.4,10.58701563]
[1754098429471,0.001,3505.5,3505.4,12.20151563]
[1754098430238,0.001,3506.0,3505.9,2.85233463]
[1754098430439,0.001,3506.0,3505.9,7.30133463]
[1754098430639,0.001,3506.0,3505.9,11.22343463]
[1754098430876,0.001,3506.0,3505.9,12.63102195]
[1754098431243,0.001,3506.0,3505.9,13.32342195]
[1754098432464,0.001,3506.4,3505.9,13.32342195]
[1754098432669,0.001,3506.4,3506.3,5.85200924]
[1754098432844,0.001,3506.4,3506.3,10.44140924]
[1754098433045,0.001,3506.4,3506.3,12.78232141]
[1754098433249,0.001,3506.4,3506.3,12.63992141]
[1754098433547,3.13542713,3509.7,3506.3,12.63992141]
[1754098433548,0.4555,3508.2,3506.9,3.0]
[1754098433770,0.4555,3508.2,3507.5,2.85102554]
[1754098433771,0.9202,3508.2,3507.5,2.85102554]
[1754098433983,0.4555,3508.1,3507.5,7.86725583]
[1754098434152,0.4647,3508.0,3507.5,7.86725583]
[1754098434460,0.9202,3507.9,3507.5,0.57023029]
[1754098434800,0.9202,3507.8,3507.5,5.01423029]
[1754098434946,0.4647,3507.8,3507.5,7.86526205]
[1754098435152,0.4555,3507.7,3507.5,7.86526205]
[1754098435456,0.4555,3507.7,3507.5,5.01423029]
[1754098435977,0.4647,3507.8,3507.5,7.8652564]
[1754098436186,0.4555,3507.6,3507.5,7.8652564]
[1754098436698,0.4647,3508.0,3507.5,7.8652564]
[1754098436699,0.4555,3507.9,3507.5,7.8652564]
[1754098436876,0.4555,3507.9,3507.5,7.29502611]
[1754098437105,0.4647,3508.2,3507.6,0.4582]
[1754098437106,0.4555,3508.2,3507.6,0.4582]
[1754098437306,0.4555,3508.2,3507.8,2.85077308]
[1754098437616,0.4555,3508.1,3507.8,2.85077308]
[1754098437915,0.4555,3508.0,3507.8,2.85077308]
[1754098438620,0.4555,3508.0,3507.7,7.29185084]
[1754098438922,0.4555,3508.0,3507.8,2.85078847]
[1754098439293,0.001,3508.8,3507.7,7.29185422]
[1754098439616,0.4555,3507.9,3507.7,7.29185422]
[1754098439918,0.4555,3508.4,3507.8,0.4582]
[1754098440434,0.4555,3508.4,3508.0,2.85061225]
[1754098440635,0.4555,3508.4,3508.0,0.4582]
[1754098440844,0.4555,3508.4,3508.1,3.30873701]
[1754098441181,0.4555,3508.7,3508.1,3.30873701]
[1754098441432,0.4555,3508.7,3508.1,0.4582]
[1754098441733,0.4555,3508.7,3508.1,4.8952]
[1754098441931,0.001,3508.8,3507.8,0.72877662]
[1754098442233,0.4555,3508.7,3508.1,5.85054321]
[1754098442418,0.001,3508.8,3508.3,2.85037176]
[1754098442581,0.001,3508.8,3508.4,7.78897421]
[1754098442787,0.001,3508.8,3508.6,2.85013965]
[1754098443117,0.001,3508.8,3508.7,2.878559]
[1754098443318,0.001,3508.8,3508.7,0.02850058]
[1754098443725,0.001,3508.8,3508.7,2.85005842]
[1754098443898,0.001,3508.8,3508.7,3.336759]
[1754098444101,0.001,3508.8,3508.7,3.30825842]
[1754098445043,0.9212,3508.8,3508.6,0.1424]
[1754098445242,0.001,3508.8,3508.1,4.456]
[1754098445426,0.001,3508.8,3507.9,2.85064815]
[1754098445427,0.9202,3508.7,3508.5,0.1424]
[1754098445734,0.9202,3508.6,3508.5,0.1424]
[1754098447733,0.9202,3508.6,3507.1,0.4582]
[1754098447906,0.001,3508.8,3508.4,0.1424]
[1754098448107,0.9202,3508.5,3508.4,0.1424]
[1754098448301,0.001,3508.8,3508.4,0.1424]
[1754098448544,0.9202,3508.7,3508.4,0.1424]
[1754098448709,0.001,3508.8,3508.4,0.1424]
[1754098449041,0.9202,3508.6,3508.4,0.1424]
[1754098449339,0.9202,3508.5,3508.4,0.1424]
[1754098451908,0.9202,3508.5,3507.5,0.4582]
[1754098452140,0.5979,3508.4,3508.0,2.85059607]
[1754098452478,0.4555,3508.4,3508.2,0.1424]
[1754098453365,0.6071,3508.7,3508.2,0.1424]
[1754098453366,1.0626,3508.7,3508.2,2.99284963]
[1754098453570,0.6071,3508.7,3508.2,3.45104963]
[1754098453767,0.9202,3508.6,3508.2,0.1424]
[1754098453974,0.4555,3508.5,3508.2,0.1424]
[1754098454382,0.4647,3508.6,3508.2,0.1424]
[1754098454679,0.4555,3508.4,3508.2,0.1424]
[1754098455080,0.5979,3508.7,3508.2,0.1424]
[1754098455390,0.5979,3508.7,3508.3,0.4582]
[1754098455550,0.4555,3508.6,3508.3,0.4582]
[1754098455891,0.001,3508.8,3508.4,0.1424]
[1754098456044,0.001,3508.8,3508.4,0.6006]
[1754098456045,0.4555,3508.7,3508.4,0.6006]
[1754098456543,0.001,3508.8,3508.5,2.85015475]
[1754098456744,0.001,3508.8,3508.7,2.85005842]
[1754098457267,0.001,3508.8,3508.7,3.76965842]
[1754098457645,0.001,3508.8,3507.8,3.0]
[1754098457871,0.001,3508.8,3508.5,2.85015519]
[1754098458063,0.001,3508.8,3508.7,3.30825842]
[1754098458266,0.001,3508.8,3508.7,3.92409978]
[1754098458646,0.001,3508.8,3508.7,4.38549978]
[1754098459925,0.001,3508.8,3508.7,3.92409978]
[1754098463479,0.001,3508.8,3508.7,8.36409978]
[1754098464510,0.001,3508.8,3508.7,8.81599978]
[1754098465422,0.001,3508.8,3508.7,8.36409978]
[1754098466717,0.001,3508.8,3508.7,11.36409978]
[1754098467748,0.001,3508.8,3508.7,11.50649978]
[1754098470614,0.001,3508.8,3508.7,11.95839978]
[1754098470832,0.001,3508.8,3508.7,11.50649978]
[1754098476950,0.001,3508.8,3508.7,11.04829978]
[1754098477152,0.001,3508.8,3508.7,11.52159978]
[1754098479552,0.001,3508.8,3508.7,11.97349978]
[1754098480467,0.001,3509.1,3509.0,2.84981476]
[1754098480620,0.001,3509.1,3509.0,17.04373116]
[1754098480822,0.001,3509.1,3509.0,17.94043302]
[1754098481931,1e-08,3509.2,3509.1,6.39973354]
[1754098482276,0.4549,3510.1,3509.4,3.0]
[1754098482478,1e-08,3509.6,3509.5,17.37418623]
[1754098482677,1e-08,3509.6,3509.5,18.41329215]
[1754098483781,0.4549,3510.8,3509.7,5.84924637]
[1754098483984,0.4549,3510.9,3510.8,2.84833188]
[1754098484148,0.9232,3510.9,3510.8,3.56041923]
[1754098484349,0.4549,3510.9,3510.8,3.56041923]
[1754098485274,0.9232,3510.9,3510.8,3.56041923]
[1754098485996,0.4549,3510.9,3510.8,7.98041923]
[1754098486690,0.4683,3511.4,3511.2,2.84802916]
[1754098486850,0.1434,3511.8,3511.3,0.1424]
[1754098487248,0.4549,3511.7,3511.3,0.1424]
[1754098487448,0.4683,3511.6,3511.3,0.1424]
[1754098488184,0.4549,3511.5,3511.3,0.1424]
[1754098488567,0.4683,3511.4,3511.3,0.1424]
[1754098488967,0.9232,3511.4,3511.3,0.1424]
[1754098489691,0.9232,3511.4,3511.3,2.93274805]
[1754098490996,0.4549,3511.4,3511.3,2.93274805]
[1754098491530,0.001,3511.8,3511.4,2.84779572]
[1754098491702,0.4388,3511.6,3511.5,2.84772083]
[1754098491875,0.001,3511.8,3511.5,2.84772083]
[1754098492074,0.4388,3511.7,3511.6,2.99010474]
[1754098492710,0.001,3511.8,3511.6,2.99010474]
[1754098493005,0.4398,3511.8,3511.6,2.99010474]
[1754098493186,0.4398,3511.8,3511.7,3.8725195]
[1754098494209,0.4398,3511.8,3511.6,0.1424]
[1754098494407,0.9036,3511.8,3511.6,0.1424]
[1754098494607,0.4398,3511.8,3511.6,0.1424]
[1754098494811,0.9026,3511.7,3511.6,0.1424]
[1754098495513,0.9026,3511.7,3511.4,0.1424]
[1754098495681,0.9026,3511.6,3511.4,0.1424]
[1754098495881,0.9026,3511.5,3511.4,0.1424]
[1754098499619,0.9036,3511.5,3511.4,0.1424]
[1754098500126,0.001,3511.5,3511.4,0.1424]
[1754098500296,0.9036,3511.5,3511.4,0.1424]
[1754098500499,0.9036,3511.5,3510.3,2.8486942]
[1754098500827,0.1424,3511.3,3510.8,0.1424]
[1754098500999,0.9026,3511.2,3510.8,0.1424]
[1754098501198,0.4398,3511.5,3510.9,0.02848272]
[1754098501419,0.001,3511.5,3511.1,0.1424]
[1754098501633,0.9026,3511.4,3510.9,3.29936859]
[1754098501828,0.4638,3511.4,3510.9,3.29936859]
[1754098502138,0.001,3511.5,3511.3,0.1424]
[1754098502337,0.4388,3511.4,3511.3,0.1424]
[1754098503019,0.4388,3511.4,3507.5,5.03619214]
[1754098503020,2.84815351,3511.1,3509.8,0.002]
[1754098503220,0.28481535,3511.0,3509.8,0.002]
[1754098503542,1.18741535,3511.0,3509.8,2.85114158]
[1754098503732,0.9026,3510.9,3509.8,2.85114158]
[1754098504105,0.9026,3510.8,3509.9,2.84906332]
[1754098504299,0.9026,3510.7,3510.0,2.84899143]
[1754098504499,0.28481535,3511.0,3510.0,2.84899143]
[1754098504500,0.9026,3510.6,3510.0,2.84899143]
[1754098504739,0.4638,3510.6,3510.0,2.84899143]
[1754098504960,0.4388,3510.5,3510.0,2.84899143]
[1754098505251,0.4388,3510.4,3510.0,2.84899143]
[1754098505459,0.4388,3510.3,3510.0,2.84899143]
[1754098506166,0.4388,3510.3,3510.0,3.30009143]
[1754098508724,0.4388,3510.3,3510.0,0.4511]
[1754098509552,0.4388,3510.3,3510.0,3.30010171]
[1754098509956,0.4388,3510.3,3510.1,2.84891844]
[1754098510259,0.4388,3510.3,3510.0,0.4511]
[1754098510260,0.4388,3510.3,3510.0,3.30008463]
[1754098512458,0.4388,3510.2,3509.8,0.002]
[1754098512962,0.4638,3510.1,3510.0,0.1424]
[1754098513329,0.9026,3510.1,3510.0,0.1424]
[1754098515368,0.1424,3510.5,3510.0,0.1424]
[1754098515568,0.1424,3510.5,3510.0,0.5935]
[1754098515766,0.1424,3510.5,3510.4,2.84867821]
[1754098515934,0.1424,3510.5,3510.4,3.29977821]
[1754098516134,0.4388,3511.0,3510.5,2.84855212]
[1754098516535,0.4388,3511.0,3510.6,3.4419948]
[1754098516773,0.4388,3511.0,3510.7,0.4511]
[1754098517076,0.86436029,3511.0,3510.7,0.4511]
[1754098517778,0.35300288,3511.1,3510.8,0.4511]
[1754098518068,0.64940288,3511.1,3510.8,0.4511]
[1754098518365,0.64940288,3511.1,3510.5,0.4511]
[1754098518366,0.1424,3510.9,3510.5,0.4511]
[1754098518590,0.4388,3510.8,3510.3,0.1424]
[1754098518767,0.4638,3510.7,3509.8,0.4531]
[1754098518944,0.1424,3510.5,3510.0,0.1424]
[1754098519138,0.1424,3510.5,3509.8,0.4531]
[1754098519139,0.9026,3510.4,3509.8,0.002]
[1754098519581,0.1424,3509.9,3509.8,0.002]
[1754098520078,1.045,3509.9,3509.8,0.002]
[1754098528287,0.1424,3509.9,3509.8,0.002]
[1754098528472,0.1424,3509.9,3509.8,0.4879]
[1754098528855,0.1424,3509.9,3509.8,0.002]
[1754098529178,0.5865,3509.9,3509.8,0.002]
[1754098531286,1.40033114,3509.9,3509.8,0.002]
[1754098531489,4.79941515,3509.9,3509.8,0.002]
[1754098533569,9.34723892,3509.9,3509.8,0.002]
[1754098535766,6.49815491,3509.9,3509.8,0.002]
[1754098536569,5.45103114,3509.9,3509.8,0.002]
[1754098536771,5.89513114,3509.9,3509.8,0.002]
[1754098537096,7.60713114,3509.9,3509.8,0.002]
[1754098537896,8.07033114,3509.9,3509.8,0.002]
[1754098538572,10.91941515,3509.9,3509.8,0.002]
[1754098543867,17.93941515,3509.9,3509.8,0.002]
[1754098544200,20.93941515,3509.9,3509.8,0.002]
[1754098545466,27.54343341,3509.9,3509.8,0.002]
[1754098546100,27.82953341,3509.9,3509.8,0.002]
[1754098549927,20.47621515,3509.9,3509.8,0.002]
[1754098550604,20.93941515,3509.9,3509.8,0.002]
[1754098551706,21.42731515,3509.9,3509.8,0.002]
[1754098551911,2.84998274,3508.8,3508.6,0.4964]
[1754098552215,5.11214947,3508.6,3508.2,0.4964]
[1754098552370,0.55,3508.4,3508.2,0.4964]
[1754098552575,4.408,3508.3,3508.2,0.4964]
[1754098552873,5.1004,3508.3,3508.2,0.4964]